fUSD/lending_fUSD_20260612
["ID","MTS","AMOUNT","RATE_DAILY","PERIOD"]
[424916419,1781271043000,-500.0,0.00013699,2]
[424916420,1781271043000,-500.0,0.00013699,2]
[424916429,1781271043000,-500.0,0.00013699,2]
[424916425,1781271043000,-500.0,0.00013699,2]
[424916423,1781271043000,-500.0,0.00013699,2]
[424916437,1781271043000,-500.0,0.00013699,2]
[424916430,1781271043000,-500.0,0.00013699,2]
[424916422,1781271043000,-500.0,0.00013699,2]
[424916417,1781271043000,-500.0,0.00013699,2]
[424916428,1781271043000,-500.0,0.00013699,2]
[424916424,1781271043000,-500.0,0.00013699,2]
[424916426,1781271043000,-500.0,0.00013699,2]
[424916432,1781271043000,-500.0,0.00013699,2]
[424916431,1781271043000,-500.0,0.00013699,2]
[424916434,1781271043000,-500.0,0.00013699,2]
[424916435,1781271043000,-500.0,0.00013699,2]
[424916436,1781271043000,-500.0,0.00013699,2]
[424916433,1781271043000,-500.0,0.00013699,2]
[424916386,1781271043000,-977.19,0.00013698,2]
[424916421,1781271043000,-500.0,0.00013699,2]
[424916416,1781271043000,-500.0,0.00013699,2]
[424916427,1781271043000,-500.0,0.00013699,2]
[424916418,1781271043000,-500.0,0.00013699,2]
[424916390,1781271043000,-977.19,0.00013698,2]
[424916415,1781271043000,-500.0,0.00013699,2]
[424916392,1781271043000,-977.19,0.00013698,2]
[424916393,1781271043000,-200.0,0.00013699,2]
[424916391,1781271043000,-977.19,0.00013698,2]
[424916399,1781271043000,-614.41645061,0.00013699,2]
[424916394,1781271043000,-2500.0,0.00013699,2]
[424916398,1781271043000,-500.0,0.00013699,2]
[424916397,1781271043000,-500.0,0.00013699,2]
[424916395,1781271043000,-377.69533895,0.00013699,2]
[424916396,1781271043000,-500.0,0.00013699,2]
[424916401,1781271043000,-500.0,0.00013699,2]
[424916402,1781271043000,-500.0,0.00013699,2]
[424916403,1781271043000,-500.0,0.00013699,2]
[424916406,1781271043000,-500.0,0.00013699,2]
[424916404,1781271043000,-500.0,0.00013699,2]
[424916405,1781271043000,-500.0,0.00013699,2]
[424916407,1781271043000,-500.0,0.00013699,2]
[424916412,1781271043000,-500.0,0.00013699,2]
[424916400,1781271043000,-500.0,0.00013699,2]
[424916411,1781271043000,-500.0,0.00013699,2]
[424916414,1781271043000,-500.0,0.00013699,2]
[424916474,1781271044000,-935.33,0.0001377,2]
[424916472,1781271044000,-150.0,0.00013745,2]
[424916475,1781271044000,-150.0,0.00013787,2]
[424916478,1781271044000,-150.0,0.00013821,2]
[424916476,1781271044000,-935.33,0.00013809,2]
[424916470,1781271044000,-150.0,0.00013702,2]
[424916477,1781271044000,-6733.08966279,0.00013816,2]
[424916468,1781271044000,-500.0,0.00013699,2]
[424916471,1781271044000,-935.33,0.00013728,2]
[424916479,1781271044000,-500.0,0.00013828,2]
[424916473,1781271044000,-150.0,0.0001376,2]
[424916481,1781271044000,-500.0,0.00013828,2]
[424916490,1781271044000,-500.0,0.00013828,2]
[424916485,1781271044000,-500.0,0.00013828,2]
[424916489,1781271044000,-500.0,0.00013828,2]
[424916491,1781271044000,-500.0,0.00013828,2]
[424916483,1781271044000,-336.21909563,0.00013828,2]
[424916488,1781271044000,-500.0,0.00013828,2]
[424916480,1781271044000,-500.0,0.00013828,2]
[424916484,1781271044000,-500.0,0.00013828,2]
[424916482,1781271044000,-500.0,0.00013828,2]
[424916487,1781271044000,-500.0,0.00013828,2]
[424916492,1781271044000,-500.0,0.00013828,2]
[424916495,1781271044000,-500.0,0.00013828,2]
[424916494,1781271044000,-500.0,0.00013828,2]
[424916469,1781271044000,-500.0,0.00013699,2]
[424916486,1781271044000,-500.0,0.00013828,2]
[424916465,1781271044000,-500.0,0.00013699,2]
[424916448,1781271044000,-500.0,0.00013699,2]
[424916463,1781271044000,-500.0,0.00013699,2]
[424916442,1781271044000,-500.0,0.00013699,2]
[424916440,1781271044000,-252.90405648,0.00013699,2]
[424916441,1781271044000,-500.0,0.00013699,2]
[424916438,1781271044000,-500.0,0.00013699,2]
[424916439,1781271044000,-500.0,0.00013699,2]
[424916443,1781271044000,-500.0,0.00013699,2]
[424916498,1781271044000,-235.71588977,0.00013828,2]
[424916447,1781271044000,-500.0,0.00013699,2]
[424916444,1781271044000,-500.0,0.00013699,2]
[424916454,1781271044000,-500.0,0.00013699,2]
[424916446,1781271044000,-500.0,0.00013699,2]
[424916445,1781271044000,-500.0,0.00013699,2]
[424916464,1781271044000,-500.0,0.00013699,2]
[424916451,1781271044000,-500.0,0.00013699,2]
[424916453,1781271044000,-500.0,0.00013699,2]
[424916450,1781271044000,-500.0,0.00013699,2]
[424916452,1781271044000,-500.0,0.00013699,2]
[424916466,1781271044000,-500.0,0.00013699,2]
[424916456,1781271044000,-500.0,0.00013699,2]
[424916455,1781271044000,-500.0,0.00013699,2]
[424916467,1781271044000,-549.99999999,0.00013699,2]
[424916457,1781271044000,-500.0,0.00013699,2]
[424916461,1781271044000,-500.0,0.00013699,2]
[424916462,1781271044000,-500.0,0.00013699,2]
[424916458,1781271044000,-500.0,0.00013699,2]
[424916459,1781271044000,-500.0,0.00013699,2]
[424916449,1781271044000,-500.0,0.00013699,2]
[424916501,1781271044000,-150.0,0.00013862,2]
[424916460,1781271044000,-500.0,0.00013699,2]
[424916502,1781271044000,-150.0,0.00013862,2]
[424916529,1781271044000,-935.33,0.00014055,2]
[424916532,1781271044000,-162.33,0.00014091,2]
[424916536,1781271044000,-935.33,0.00014152,2]
[424916531,1781271044000,-150.0,0.00014087,2]
[424916533,1781271044000,-935.33,0.00014105,2]
[424916530,1781271044000,-935.33,0.0001408,2]
[424916535,1781271044000,-150.0,0.0001413,2]
[424916538,1781271044000,-150.0,0.00014169,2]
[424916534,1781271044000,-935.33,0.00014128,2]
[424916537,1781271044000,-150.0,0.00014154,2]
[424916540,1781271044000,-150.0,0.00014173,2]
[424916541,1781271044000,-935.33,0.00014174,2]
[424916542,1781271044000,-935.33,0.00014196,2]
[424916543,1781271044000,-676.28,0.00014197,2]
[424916548,1781271044000,-150.0,0.00014237,2]
[424916547,1781271044000,-150.0,0.00014237,2]
[424916549,1781271044000,-935.33,0.00014239,2]
[424916550,1781271044000,-150.0,0.00014258,2]
[424916544,1781271044000,-150.0,0.00014216,2]
[424916545,1781271044000,-935.33,0.00014218,2]
[424916552,1781271044000,-935.33,0.0001428,2]
[424916553,1781271044000,-935.33,0.00014299,2]
[424916551,1781271044000,-935.33,0.00014259,2]
[424916554,1781271044000,-150.0,0.00014301,2]
[424916555,1781271044000,-150.0,0.00014305,2]
[424916556,1781271044000,-935.33,0.00014319,2]
[424916503,1781271044000,-150.0,0.00013873,2]
[424916528,1781271044000,-150.0,0.0001405,2]
[424916539,1781271044000,-6348.6,0.00014172,2]
[424916546,1781271044000,-150.0,0.00014237,2]
[424916524,1781271044000,-1076.04,0.00014032,2]
[424916517,1781271044000,-46726.30979107,0.0001399,2]
[424916500,1781271044000,-935.33,0.00013846,2]
[424916497,1781271044000,-500.0,0.00013828,2]
[424916493,1781271044000,-500.0,0.00013828,2]
[424916496,1781271044000,-500.0,0.00013828,2]
[424916499,1781271044000,-150.0,0.0001383,2]
[424916504,1781271044000,-783.11408848,0.00013878,2]
[424916505,1781271044000,-935.33,0.0001388,2]
[424916508,1781271044000,-231.547163,0.00013902,2]
[424916506,1781271044000,-150.0,0.00013896,2]
[424916513,1781271044000,-1053.940307,0.00013961,2]
[424916507,1781271044000,-195.629186,0.00013902,2]
[424916509,1781271044000,-935.33,0.00013913,2]
[424916512,1781271044000,-150.0,0.00013959,2]
[424916522,1781271044000,-1437.01,0.00014018,2]
[424916510,1781271044000,-150.0,0.00013916,2]
[424916515,1781271044000,-150.0,0.00013987,2]
[424916511,1781271044000,-935.33,0.00013943,2]
[424916516,1781271044000,-736.0,0.00013989,2]
[424916519,1781271044000,-250.0,0.00014,2]
[424916527,1781271044000,-150.0,0.0001405,2]
[424916523,1781271044000,-935.33,0.00014028,2]
[424916518,1781271044000,-389.68,0.00014,2]
[424916520,1781271044000,-935.33,0.00014001,2]
[424916521,1781271044000,-150.0,0.00014001,2]
[424916526,1781271044000,-150.0,0.00014044,2]
[424916514,1781271044000,-935.33,0.00013973,2]
[424916525,1781271044000,-150.0,0.00014033,2]
[424916577,1781271045000,-150.0,0.00014487,2]
[424916575,1781271045000,-150.0,0.00014472,2]
[424916587,1781271045000,-783.11408848,0.0001456,2]
[424916578,1781271045000,-935.33,0.00014496,2]
[424916576,1781271045000,-935.33,0.00014479,2]
[424916586,1781271045000,-935.33,0.0001456,2]
[424916579,1781271045000,-2000.0,0.00014496,2]
[424916582,1781271045000,-150.0,0.00014515,2]
[424916583,1781271045000,-935.33,0.00014528,2]
[424916585,1781271045000,-150.0,0.00014558,2]
[424916580,1781271045000,-141748.4475,0.00014511,2]
[424916584,1781271045000,-935.33,0.00014544,2]
[424916564,1781271045000,-150.0,0.00014387,2]
[424916581,1781271045000,-935.33,0.00014512,2]
[424916571,1781271045000,-150.0,0.0001443,2]
[424916558,1781271045000,-935.33,0.00014338,2]
[424916567,1781271045000,-150.0,0.00014424,2]
[424916590,1781271045000,-935.33,0.00014591,2]
[424916561,1781271045000,-6733.08966279,0.00014358,2]
[424916562,1781271045000,-151.0,0.00014368,2]
[424916560,1781271045000,-935.33,0.00014357,2]
[424916559,1781271045000,-150.0,0.00014344,2]
[424916557,1781271045000,-150.0,0.0001432,2]
[424916568,1781271045000,-150.0,0.00014424,2]
[424916563,1781271045000,-935.33,0.00014375,2]
[424916565,1781271045000,-935.33,0.00014393,2]
[424916570,1781271045000,-2000.0,0.00014428,2]
[424916569,1781271045000,-935.33,0.00014428,2]
[424916566,1781271045000,-935.33,0.00014411,2]
[424916574,1781271045000,-935.33,0.00014463,2]
[424916572,1781271045000,-150.0,0.00014441,2]
[424916573,1781271045000,-935.33,0.00014446,2]
[424916589,1781271045000,-150.0,0.00014578,2]
[424916598,1781271045000,-150.0,0.00014644,2]
[424916591,1781271045000,-150.0,0.00014601,2]
[424916588,1781271045000,-935.33,0.00014575,2]
[424916629,1781271045000,-500.0,0.00014866,2]
[424916628,1781271045000,-150.0,0.00014865,2]
[424916626,1781271045000,-150.0,0.00014858,2]
[424916621,1781271045000,-5800.0,0.00014841,2]
[424916620,1781271045000,-5800.0,0.00014832,2]
[424916618,1781271045000,-150.0,0.00014815,2]
[424916622,1781271045000,-661.96357939,0.00014842,2]
[424916625,1781271045000,-5800.0,0.00014858,2]
[424916624,1781271045000,-150.0,0.0001485,2]
[424916617,1781271045000,-3000.0,0.000148,5]
[424916619,1781271045000,-150.0,0.0001482,2]
[424916623,1781271045000,-5800.0,0.00014849,2]
[424916610,1781271045000,-150.0,0.00014799,2]
[424916607,1781271045000,-150.0,0.00014772,2]
[424916627,1781271045000,-233.85297309,0.00014862,2]
[424916602,1781271045000,-935.33,0.00014679,2]
[424916609,1781271045000,-150.0,0.00014799,2]
[424916597,1781271045000,-935.33,0.00014636,2]
[424916592,1781271045000,-935.33,0.00014606,2]
[424916594,1781271045000,-150.0,0.00014612,2]
[424916596,1781271045000,-151.0,0.0001463,2]
[424916593,1781271045000,-150.0,0.00014612,2]
[424916600,1781271045000,-150.0,0.00014653,2]
[424916595,1781271045000,-935.33,0.00014621,2]
[424916605,1781271045000,-150.0,0.00014714,2]
[424916606,1781271045000,-150.0,0.00014729,2]
[424916603,1781271045000,-150.0,0.00014687,2]
[424916608,1781271045000,-500.0,0.00014788,2]
[424916599,1781271045000,-935.33,0.0001465,2]
[424916601,1781271045000,-935.33,0.00014665,2]
[424916604,1781271045000,-3000.0,0.000147,5]
[424916666,1781271046000,-500.0,0.000149,2]
[424916665,1781271046000,-500.0,0.000149,2]
[424916664,1781271046000,-500.0,0.000149,2]
[424916660,1781271046000,-151.0,0.000149,2]
[424916661,1781271046000,-3000.0,0.000149,5]
[424916662,1781271046000,-151.0,0.000149,2]
[424916658,1781271046000,-5800.0,0.000149,2]
[424916667,1781271046000,-500.0,0.000149,2]
[424916659,1781271046000,-842.69404067,0.000149,3]
[424916663,1781271046000,-151.0,0.000149,2]
[424916668,1781271046000,-500.0,0.000149,2]
[424916676,1781271046000,-500.0,0.000149,2]
[424916670,1781271046000,-500.0,0.000149,2]
[424916675,1781271046000,-500.0,0.000149,2]
[424916673,1781271046000,-500.0,0.000149,2]
[424916669,1781271046000,-500.0,0.000149,2]
[424916674,1781271046000,-500.0,0.000149,2]
[424916677,1781271046000,-500.0,0.000149,2]
[424916678,1781271046000,-500.0,0.000149,2]
[424916681,1781271046000,-500.0,0.000149,2]
[424916680,1781271046000,-500.0,0.000149,2]
[424916683,1781271046000,-500.0,0.000149,2]
[424916653,1781271046000,-10000.0,0.000149,2]
[424916671,1781271046000,-500.0,0.000149,2]
[424916657,1781271046000,-25000.0,0.000149,3]
[424916639,1781271046000,-500.0,0.00014899,2]
[424916656,1781271046000,-2000.0,0.000149,2]
[424916682,1781271046000,-500.0,0.000149,2]
[424916630,1781271046000,-500.0,0.00014866,2]
[424916633,1781271046000,-5800.0,0.00014866,2]
[424916636,1781271046000,-5800.0,0.00014883,2]
[424916631,1781271046000,-500.0,0.00014866,2]
[424916635,1781271046000,-346.75605984,0.00014877,2]
[424916632,1781271046000,-500.0,0.00014866,2]
[424916634,1781271046000,-5800.0,0.00014874,2]
[424916637,1781271046000,-5800.0,0.00014891,2]
[424916640,1781271046000,-500.0,0.00014899,2]
[424916641,1781271046000,-500.0,0.00014899,2]
[424916654,1781271046000,-469.42,0.000149,2]
[424916644,1781271046000,-500.0,0.00014899,2]
[424916638,1781271046000,-500.0,0.00014899,2]
[424916646,1781271046000,-500.0,0.00014899,2]
[424916645,1781271046000,-1114.97,0.00014899,2]
[424916642,1781271046000,-590.06,0.00014899,2]
[424916648,1781271046000,-500.0,0.00014899,2]
[424916652,1781271046000,-567.54,0.00014899,2]
[424916647,1781271046000,-500.0,0.00014899,2]
[424916650,1781271046000,-500.0,0.00014899,2]
[424916651,1781271046000,-607.91,0.00014899,2]
[424916649,1781271046000,-500.0,0.00014899,2]
[424916655,1781271046000,-33280.8127,0.000149,2]
[424916643,1781271046000,-500.0,0.00014899,2]
[424916679,1781271046000,-500.0,0.000149,2]
[424916672,1781271046000,-500.0,0.000149,2]
[424916686,1781271046000,-500.0,0.000149,2]
[424916728,1781271046000,-500.0,0.000149,2]
[424916719,1781271046000,-500.0,0.000149,2]
[424916729,1781271046000,-500.0,0.000149,2]
[424916721,1781271046000,-500.0,0.000149,2]
[424916726,1781271046000,-1113.038951,0.000149,2]
[424916723,1781271046000,-500.0,0.000149,2]
[424916722,1781271046000,-500.0,0.000149,2]
[424916720,1781271046000,-1113.038951,0.000149,2]
[424916724,1781271046000,-152.656123,0.000149,2]
[424916725,1781271046000,-500.0,0.000149,2]
[424916727,1781271046000,-500.0,0.000149,2]
[424916718,1781271046000,-500.0,0.000149,2]
[424916730,1781271046000,-500.0,0.000149,2]
[424916740,1781271046000,-500.0,0.000149,2]
[424916732,1781271046000,-500.0,0.000149,2]
[424916731,1781271046000,-500.0,0.000149,2]
[424916735,1781271046000,-500.0,0.000149,2]
[424916734,1781271046000,-6733.08966279,0.000149,2]
[424916733,1781271046000,-1113.038951,0.000149,2]
[424916736,1781271046000,-500.0,0.000149,2]
[424916737,1781271046000,-500.0,0.000149,2]
[424916738,1781271046000,-500.0,0.000149,2]
[424916741,1781271046000,-500.0,0.000149,2]
[424916743,1781271046000,-500.0,0.000149,2]
[424916739,1781271046000,-500.0,0.000149,2]
[424916713,1781271046000,-1113.038951,0.000149,2]
[424916684,1781271046000,-500.0,0.000149,2]
[424916715,1781271046000,-500.0,0.000149,2]
[424916685,1781271046000,-500.0,0.000149,2]
[424916689,1781271046000,-500.0,0.000149,2]
[424916687,1781271046000,-500.0,0.000149,2]
[424916688,1781271046000,-500.0,0.000149,2]
[424916690,1781271046000,-500.0,0.000149,2]
[424916692,1781271046000,-500.0,0.000149,2]
[424916693,1781271046000,-500.0,0.000149,2]
[424916716,1781271046000,-500.0,0.000149,2]
[424916699,1781271046000,-500.0,0.000149,2]
[424916695,1781271046000,-500.0,0.000149,2]
[424916702,1781271046000,-500.0,0.000149,2]
[424916742,1781271046000,-500.0,0.000149,2]
[424916691,1781271046000,-500.0,0.000149,2]
[424916701,1781271046000,-500.0,0.000149,2]
[424916703,1781271046000,-500.0,0.000149,2]
[424916712,1781271046000,-500.0,0.000149,2]
[424916710,1781271046000,-500.0,0.000149,2]
[424916711,1781271046000,-500.0,0.000149,2]
[424916709,1781271046000,-500.0,0.000149,2]
[424916714,1781271046000,-500.0,0.000149,2]
[424916706,1781271046000,-500.0,0.000149,2]
[424916717,1781271046000,-500.0,0.000149,2]
[424916707,1781271046000,-500.0,0.000149,2]
[424916697,1781271046000,-500.0,0.000149,2]
[424916705,1781271046000,-7220.27044767,0.000149,2]
[424916708,1781271046000,-500.0,0.000149,2]
[424916781,1781271047000,-567.54,0.00014946,2]
[424916785,1781271047000,-151.0,0.00014947,2]
[424916780,1781271047000,-567.54,0.00014946,2]
[424916778,1781271047000,-567.54,0.00014946,2]
[424916777,1781271047000,-608.0256614,0.00014946,2]
[424916776,1781271047000,-607.91,0.00014946,2]
[424916772,1781271047000,-607.91,0.00014946,2]
[424916774,1781271047000,-607.91,0.00014946,2]
[424916770,1781271047000,-1114.97,0.00014946,2]
[424916779,1781271047000,-567.54,0.00014946,2]
[424916782,1781271047000,-567.54,0.00014946,2]
[424916792,1781271047000,-10317.8354675,0.00014951,2]
[424916784,1781271047000,-674581.0579102,0.00014947,2]
[424916786,1781271047000,-151.0,0.00014947,2]
[424916787,1781271047000,-1113.038951,0.00014947,2]
[424916790,1781271047000,-1113.038951,0.00014947,2]
[424916789,1781271047000,-1113.038951,0.00014947,2]
[424916788,1781271047000,-1113.038951,0.00014947,2]
[424916791,1781271047000,-157.33036762,0.00014949,2]
[424916794,1781271047000,-332.55,0.00014985,2]
[424916795,1781271047000,-150.0,0.00014985,2]
[424916796,1781271047000,-284.03421377,0.00014986,2]
[424916793,1781271047000,-162.33,0.00014972,2]
[424916765,1781271047000,-590.28,0.00014946,2]
[424916783,1781271047000,-567.77,0.00014946,2]
[424916771,1781271047000,-1115.10440091,0.00014946,2]
[424916755,1781271047000,-151.0,0.00014942,2]
[424916768,1781271047000,-1114.97,0.00014946,2]
[424916797,1781271047000,-249.66496614,0.00014986,2]
[424916747,1781271047000,-330.03903249,0.000149,2]
[424916749,1781271047000,-150.0,0.00014901,2]
[424916745,1781271047000,-500.0,0.000149,2]
[424916746,1781271047000,-500.0,0.000149,2]
[424916744,1781271047000,-500.0,0.000149,2]
[424916748,1781271047000,-164.27986953,0.000149,2]
[424916750,1781271047000,-2031.32357052,0.00014932,2]
[424916751,1781271047000,-1177690.8814671,0.00014942,2]
[424916761,1781271047000,-590.06,0.00014946,2]
[424916762,1781271047000,-590.06,0.00014946,2]
[424916752,1781271047000,-151.0,0.00014942,2]
[424916763,1781271047000,-590.06,0.00014946,2]
[424916753,1781271047000,-151.0,0.00014942,2]
[424916756,1781271047000,-151.0,0.00014942,2]
[424916758,1781271047000,-150.0,0.00014943,2]
[424916754,1781271047000,-151.0,0.00014942,2]
[424916757,1781271047000,-151.0,0.00014942,2]
[424916760,1781271047000,-590.06,0.00014946,2]
[424916759,1781271047000,-1108.95049288,0.00014946,5]
[424916764,1781271047000,-590.06,0.00014946,2]
[424916766,1781271047000,-1114.97,0.00014946,2]
[424916773,1781271047000,-607.91,0.00014946,2]
[424916767,1781271047000,-1114.97,0.00014946,2]
[424916775,1781271047000,-607.91,0.00014946,2]
[424916769,1781271047000,-1114.97,0.00014946,2]
[424916801,1781271047000,-252.02122671,0.00014986,2]
[424916798,1781271047000,-193.79231313,0.00014986,2]
[424916799,1781271047000,-282.8290565,0.00014986,2]
[424916831,1781271047000,-500.0,0.00014999,2]
[424916832,1781271047000,-500.0,0.00014999,2]
[424916829,1781271047000,-500.0,0.00014999,2]
[424916840,1781271047000,-500.0,0.00014999,2]
[424916839,1781271047000,-500.0,0.00014999,2]
[424916841,1781271047000,-500.0,0.00014999,2]
[424916842,1781271047000,-500.0,0.00014999,2]
[424916838,1781271047000,-500.0,0.00014999,2]
[424916834,1781271047000,-500.0,0.00014999,2]
[424916836,1781271047000,-500.0,0.00014999,2]
[424916835,1781271047000,-500.0,0.00014999,2]
[424916837,1781271047000,-500.0,0.00014999,2]
[424916843,1781271047000,-465.75305224,0.00014999,2]
[424916850,1781271047000,-2398780.03397229,0.00015,2]
[424916852,1781271047000,-200.0,0.00015,2]
[424916851,1781271047000,-5233448.92384406,0.00015,2]
[424916853,1781271047000,-689.23,0.00015,2]
[424916849,1781271047000,-666.0,0.00014999,2]
[424916845,1781271047000,-300.0,0.00014999,2]
[424916844,1781271047000,-300.0,0.00014999,2]
[424916846,1781271047000,-300.0,0.00014999,2]
[424916848,1781271047000,-300.0,0.00014999,2]
[424916847,1781271047000,-300.0,0.00014999,2]
[424916855,1781271047000,-697.03,0.00015,2]
[424916854,1781271047000,-1672.88,0.00015,2]
[424916830,1781271047000,-500.0,0.00014999,2]
[424916828,1781271047000,-500.0,0.00014999,2]
[424916833,1781271047000,-500.0,0.00014999,2]
[424916827,1781271047000,-500.0,0.00014999,2]
[424916824,1781271047000,-500.0,0.00014999,2]
[424916803,1781271047000,-190.82024742,0.00014986,2]
[424916800,1781271047000,-215.3825728,0.00014986,2]
[424916805,1781271047000,-500.0,0.00014988,2]
[424916802,1781271047000,-295.39287249,0.00014986,2]
[424916804,1781271047000,-500.0,0.00014988,2]
[424916807,1781271047000,-189.37017155,0.00014988,2]
[424916809,1781271047000,-151.0,0.00014997,2]
[424916808,1781271047000,-500.0,0.00014988,2]
[424916810,1781271047000,-1108.95049288,0.00014999,5]
[424916812,1781271047000,-1108.95049288,0.00014999,5]
[424916817,1781271047000,-500.0,0.00014999,2]
[424916819,1781271047000,-500.0,0.00014999,2]
[424916818,1781271047000,-500.0,0.00014999,2]
[424916815,1781271047000,-223.63775776,0.00014999,2]
[424916825,1781271047000,-500.0,0.00014999,2]
[424916826,1781271047000,-500.0,0.00014999,2]
[424916823,1781271047000,-287.06193287,0.00014999,2]
[424916820,1781271047000,-523.0467315,0.00014999,2]
[424916822,1781271047000,-500.0,0.00014999,2]
[424916821,1781271047000,-500.0,0.00014999,2]
[424916806,1781271047000,-500.0,0.00014988,2]
[424916814,1781271047000,-1108.95049288,0.00014999,5]
[424916816,1781271047000,-500.0,0.00014999,2]
[424916813,1781271047000,-1108.9504929,0.00014999,5]
[424916811,1781271047000,-1108.95049288,0.00014999,5]
[424916900,1781271048000,-784.5147072,0.000153,2]
[424916891,1781271048000,-476.440479,0.00015068,2]
[424916894,1781271048000,-784.5147072,0.000152,2]
[424916893,1781271048000,-1500.0,0.0001515,2]
[424916895,1781271048000,-8893.9971017,0.000152,2]
[424916896,1781271048000,-783.11408848,0.00015243,2]
[424916886,1781271048000,-476.440479,0.00015068,2]
[424916887,1781271048000,-476.440479,0.00015068,2]
[424916885,1781271048000,-476.440479,0.00015068,2]
[424916888,1781271048000,-476.440479,0.00015068,2]
[424916892,1781271048000,-200.0,0.0001515,2]
[424916890,1781271048000,-476.440479,0.00015068,2]
[424916908,1781271048000,-666.0,0.00015333,2]
[424916898,1781271048000,-10000.0,0.00015297,2]
[424916897,1781271048000,-1437.01,0.00015292,2]
[424916902,1781271048000,-200.0,0.00015301,2]
[424916903,1781271048000,-300.0,0.00015333,2]
[424916904,1781271048000,-300.0,0.00015333,2]
[424916901,1781271048000,-8893.9971017,0.000153,2]
[424916906,1781271048000,-300.0,0.00015333,2]
[424916909,1781271048000,-2000.0,0.00015334,2]
[424916911,1781271048000,-2000.0,0.00015334,2]
[424916910,1781271048000,-2000.0,0.00015334,2]
[424916884,1781271048000,-476.440479,0.00015068,2]
[424916899,1781271048000,-1517.64,0.000153,2]
[424916883,1781271048000,-476.440479,0.00015068,2]
[424916865,1781271048000,-151.0,0.00015,2]
[424916880,1781271048000,-476.440479,0.00015068,2]
[424916905,1781271048000,-300.0,0.00015333,2]
[424916857,1781271048000,-151.0,0.00015,2]
[424916866,1781271048000,-151.0,0.00015,2]
[424916856,1781271048000,-418.23,0.00015,2]
[424916858,1781271048000,-151.0,0.00015,2]
[424916860,1781271048000,-151.0,0.00015,2]
[424916863,1781271048000,-151.0,0.00015,2]
[424916859,1781271048000,-151.0,0.00015,2]
[424916864,1781271048000,-151.0,0.00015,2]
[424916861,1781271048000,-151.0,0.00015,2]
[424916862,1781271048000,-228.181742,0.00015,2]
[424916867,1781271048000,-151.0,0.00015,2]
[424916871,1781271048000,-1113.038951,0.00015,2]
[424916870,1781271048000,-1113.038951,0.00015,2]
[424916877,1781271048000,-1113.038951,0.00015,2]
[424916873,1781271048000,-1113.038951,0.00015,2]
[424916868,1781271048000,-151.0,0.00015,2]
[424916869,1781271048000,-151.0,0.00015,2]
[424916876,1781271048000,-1113.038951,0.00015,2]
[424916874,1781271048000,-1113.038951,0.00015,2]